Cogmind - Beta 13 @@@ ROGUE MODE // 2024.03.24 @ 12:58:47 Player: Julie Result: Destroyed by G-34 Mercenary with Small Laser Performance ------------- Evolutions (1) 500 Regions Visited (4) 800 Robots Destroyed (14) 70 Value Destroyed (478) 478 Prototype IDs (1) 20 Alien Tech Used (0) 0 Bonus (185) 185 TOTAL SCORE: 2053 Bonus ------- High Alert Combat Kills 38 Follower Combat Kills 147 Cogmind --------- Core Integrity 0/400 Matter 187/300 Energy 100/100 System Corruption 13% Temperature Cool (6) Movement Core (200) Ox3 Location -9/Storage Parts ------- > --- POWER (1) -------- (None) > --- PROPULSION (4) --- (None) > --- UTILITY (2) ------ Medium Storage Unit > --- WEAPON (2) ------- (None) > --- INVENTORY (10) --- Improved Ion Engine Improved Targeting Computer Drone Bay (2/2) Drone Bay (2/2) Heavy Hammer Peak State ------------ > --- POWER ------------ Improved Ion Engine > --- PROPULSION ------- Improved Flight Unit Improved Flight Unit Improved Flight Unit Improved Flight Unit > --- UTILITY ---------- Medium Storage Unit Terrain Scanner > --- WEAPON ----------- Heavy Hammer > --- INVENTORY -------- Light Ion Engine Flight Unit Improved Targeting Computer Drone Bay Drone Bay Mini Grenade Launcher Mining Laser [Rating: 19] Favorites ----------- Power Ion Engine Engine Ion Engine Propulsion Aluminum Leg Leg Aluminum Leg Flight Unit Improved Flight Unit Utility Small Storage Unit Device ECM Suite Storage Small Storage Unit Weapon Assault Rifle Ballistic Gun Assault Rifle Launcher Mini Grenade Launcher Special Weapon Mining Laser Impact Weapon Heavy Hammer Build | -11 -10 -10 -9 -9 ------- Run | Yrd Mat Min Mat Sto Slots Evolved 2 | . . . 2 . Power . | . . . . . Propulsion 2 | . . . 2 . Utility . | . . . . . Weapon . | . . . . . Parts Attached 26 | 6 1 7 2 10 Power 4 | 1 . 1 . 2 Engine 4 | 1 . 1 . 2 Core . | . . . . . Reactor . | . . . . . Propulsion 10 | 2 . 2 1 5 Treads . | . . . . . Leg 2 | 2 . . . . Wheel . | . . . . . Hover . | . . . . . Flight 8 | . . 2 1 5 Utility 5 | 1 1 2 . 1 Device 3 | . 1 2 . . Storage 2 | 1 . . . 1 Processor . | . . . . . Hackware . | . . . . . Protection . | . . . . . Artifact . | . . . . . Weapon 7 | 2 . 2 1 2 Energy Gun . | . . . . . Energy Cannon . | . . . . . Ballistic Gun 3 | 2 . 1 . . Ballistic Cannon . | . . . . . Launcher 1 | . . . . 1 Special Weapon 2 | . . 1 . 1 Impact Weapon 1 | . . . 1 . Slashing Weapon . | . . . . . Piercing Weapon . | . . . . . Special Melee Weapon . | . . . . . Unidentified Prototypes 1 | . . . . 1 Parts Lost 10 | . . . . 10 Power 2 | . . . . 2 Propulsion 5 | . . . . 5 Utility 1 | . . . . 1 Weapon 2 | . . . . 2 Highest Loss Streak 8 | . . . . 8 To Critical Strikes . | . . . . . Average Slot Usage (%) 87 | . 99 95 88 70 Engine 11 | . 14 13 11 6 Leg 13 | . 28 16 . . Flight 16 | . . 12 33 32 Device 13 | . 13 16 22 10 Storage 10 | . 14 8 . 9 Ballistic Gun 13 | . 28 16 . . Special Weapon 4 | . . 11 11 3 Impact Weapon 3 | . . . 11 7 Naked Turns . | . . . . . Heaviest Build 18 | 14 16 16 9 18 Greatest Support 20 | 20 20 20 12 20 Greatest Overweight (x) 4 | 2 . 4 . 3 Average Overweight (x) . | 1 . . . . Largest Inventory Capacity 10 | 8 8 8 5 10 Average Capacity 7 | 7 8 6 5 9 Most Carried 8 | 3 8 8 5 8 Average Carried 5 | 2 5 6 4 5 Final Capacity 10 | 8 8 5 5 10 Final Carried 8 | 2 8 3 5 5 Class Distribution -------------------- 66% | Mutant 18% | Scavenger-Mutant 15% | Sprinter Dominant Class ---------------- Mutant | -10/Materials Mutant | -10/Mines Scavenger-Mutant | -9/Materials Sprinter | -9/Storage Resources | -11 -10 -10 -9 -9 ----------- Run | Yrd Mat Min Mat Sto Matter Collected 560 | 250 104 114 . 92 Remotely . | . . . . . Salvage Created 390 | . 122 . . 268 Parts 22 | . 9 . . 13 Haulers Intercepted . | . . . . . Recyclers Shooed . | . . . . . Parts Field Recycled . | . . . . . Retrieved Matter . | . . . . . Parts Self-Destructed . | . . . . . Prevented . | . . . . . Kills | -11 -10 -10 -9 -9 ------- Run | Yrd Mat Min Mat Sto Combat Hostiles Destroyed 11 | . 2 . . 9 Melee 1 | . . . . 1 Guns 2 | . 2 . . . AOE 6 | . . . . 6 Classes Destroyed 6 | . 2 . . 4 Builder 1 | . . . . 1 Recycler 1 | . 1 . . . Watcher 1 | . . . . 1 Grunt 6 | . 2 . . 4 Duelist 1 | . . . . 1 Sentry 4 | . . . . 4 Best Kill Streak 8 | . 2 . . 8 Combat Bots Only 6 | . 2 . . 6 Max Kills in Single Turn 2 | . 1 . . 2 Gunslinging . | . . . . . Exploded 2 | . . . . 2 Melee 1 | . . . . 1 Uniques/NPCs Destroyed . | . . . . . Combat | -11 -10 -10 -9 -9 -------- Run | Yrd Mat Min Mat Sto Hostile Shots Fired 98 | . 14 6 6 72 Missed 25 | . 2 2 4 17 Damage Taken 1116 | . 133 31 22 930 Core 443 | . 34 7 14 388 Absorbed by Shields . | . . . . . Core Remaining (%) 91 | 100 . 83 . . Volleys Fired 43 | . 14 17 . 12 Largest 2 | . 2 2 . 1 Hottest 120 | . 40 120 . 30 Shots Fired 68 | . 28 28 . 12 Gun 45 | . 28 17 . . Cannon . | . . . . . Launcher 12 | . . . . 12 Special 11 | . . 11 . . Kinetic 45 | . 28 17 . . Thermal 11 | . . 11 . . Explosive 12 | . . . . 12 Electromagnetic . | . . . . . Robot Hit Streak 12 | . 4 1 . 12 Robot Miss Streak 2 | . 2 1 . . Penetration Max . | . . . . . Secondary Targets . | . . . . . Shots Hit Robots 41 | . 19 1 . 21 Core Hits 24 | . 6 . . 18 Critical Kills . | . . . . . Critical Parts Destroyed . | . . . . . Critical Strikes . | . . . . . Melee Attacks 11 | . . . . 11 Impact 11 | . . . . 11 Slashing . | . . . . . Piercing . | . . . . . Sneak Attacks 1 | . . . . 1 Combat Hostiles . | . . . . . Follow-up Attacks . | . . . . . Damage Inflicted 1308 | . 240 13 . 1055 Guns 253 | . 240 13 . . Cannons . | . . . . . Explosions 673 | . . . . 673 Melee 382 | . . . . 382 Ramming . | . . . . . Kinetic 253 | . 240 13 . . Thermal . | . . . . . Explosive 673 | . . . . 673 Electromagnetic . | . . . . . Impact 382 | . . . . 382 Slashing . | . . . . . Piercing . | . . . . . Highest Corruption 13 | . . . . 13 Average Corruption 13 | . . . . 13 Corruption Purged . | . . . . . Corruption Blocked . | . . . . . Effects 2 | . . . . 2 Matter Fused 1 | . . . . 1 Data Loss (major) 1 | . . . . 1 Overload Shots . | . . . . . Overflow Damage 75 | . . . . 75 Projectiles . | . . . . . Explosions 17 | . . . . 17 Melee 58 | . . . . 58 Knockbacks 1 | . . . . 1 Impact 1 | . . . . 1 Kinetic . | . . . . . Secondary . | . . . . . Self-Inflicted Damage 114 | . . . . 114 Shots 5 | . . . . 5 Rammed . | . . . . . Targets Rammed . | . . . . . Kicked . | . . . . . Crushed . | . . . . . Highest Temperature 60 | . . 60 . 22 Average Temperature 22 | . . 24 . 12 Received Heat Transfer 408 | . 72 . 9 327 Siege Activations . | . . . . . Robots Corrupted . | . . . . . Combat Hostiles . | . . . . . Parts Fried 5 | . . . . 5 Impact Corruptions 5 | . . . . 5 Robots Melted . | . . . . . Combat Hostiles . | . . . . . Parts Melted . | . . . . . Heat Transferred . | . . . . . Parts Sabotaged . | . . . . . Parts Stolen . | . . . . . Parts Stripped . | . . . . . Power Chain Reactions . | . . . . . Alert | -11 -10 -10 -9 -9 ------- Run | Yrd Mat Min Mat Sto Peak Influence 473 | . 70 150 126 473 Initial 58 | . . 27 58 52 Average 111 | . 45 58 95 248 Maximum Alert Level 2 | . . . . 2 Low Security (%) 80 | 100 100 100 100 39 Level 1 11 | . . . . 34 Level 2 8 | . . . . 26 Level 3 . | . . . . . Level 4 . | . . . . . Level 5 . | . . . . . High Security . | . . . . . Max Security . | . . . . . Squads Dispatched 4 | . 1 . . 3 Investigation . | . . . . . Extermination . | . . . . . Reinforcement 4 | . 1 . . 3 Assault . | . . . . . Garrison . | . . . . . Intercept . | . . . . . Searches Triggered . | . . . . . Construction Impeded . | . . . . . Haulers Reinforced . | . . . . . Active Scanning Responses . | . . . . . Cargo Convoy Interrupts . | . . . . . Stealth | -11 -10 -10 -9 -9 --------- Run | Yrd Mat Min Mat Sto Distress Signals 2 | . . . 1 1 Communications Jammed . | . . . . . Distress Signals . | . . . . . Times Spotted 40 | . 6 3 7 24 Peak Tracking Total 11 | . 2 3 8 11 Tactical Retreats 2 | . . . . 2 Traps | -11 -10 -10 -9 -9 ------- Run | Yrd Mat Min Mat Sto Traps Triggered . | . . . . . Indirectly . | . . . . . Trap Hack Attempts . | . . . . . Triggered . | . . . . . Disarmed . | . . . . . Reprogrammed . | . . . . . Reused . | . . . . . Traps Extracted . | . . . . . Installed . | . . . . . Triggered . | . . . . . Machines | -11 -10 -10 -9 -9 ---------- Run | Yrd Mat Min Mat Sto Machines Disabled 2 | . . . . 2 Max in Single Turn 1 | . . . . 1 Machines Repaired . | . . . . . Machines Dismantled . | . . . . . Machines Sabotaged . | . . . . . Overloaded Fab Kills . | . . . . . Hacking | -11 -10 -10 -9 -9 --------- Run | Yrd Mat Min Mat Sto Machines Accessed 3 | . 2 . . 1 Terminals 2 | . 1 . . 1 Fabricators . | . . . . . Repair Stations . | . . . . . Recycling Units 1 | . 1 . . . Scanalyzers . | . . . . . Garrison Access . | . . . . . Total Hacks 5 | . 3 . . 2 Successful 4 | . 3 . . 1 Failed 1 | . . . . 1 Catastrophic . | . . . . . Database Lockouts . | . . . . . Manual 1 | . . . 1 . Terminals 3 | . 1 . . 2 Fabricators . | . . . . . Repair Stations . | . . . . . Recycling Units 2 | . 2 . . . Scanalyzers . | . . . . . Garrison Access . | . . . . . Terminal Hacks 2 | . 1 . . 1 Open Door 1 | . . . . 1 Locate Traps 1 | . 1 . . . Fabricator Hacks . | . . . . . Repair Station Hacks . | . . . . . Recycling Unit Hacks 2 | . 2 . . . Report Inventory 1 | . 1 . . . Retrieve Components 1 | . 1 . . . Scanalyzer . | . . . . . Garrison Access Hacks . | . . . . . Unauthorized Hacks . | . . . . . Terminals . | . . . . . Fabricators . | . . . . . Repair Stations . | . . . . . Recycling Units . | . . . . . Scanalyzers . | . . . . . Garrison Access . | . . . . . Data Cores Recovered . | . . . . . Used . | . . . . . Hacking Detections 2 | . . . 1 1 Full Trace Events . | . . . . . Feedback Events . | . . . . . Feedback Blocked . | . . . . . Robot Schematics Acquired . | . . . . . Robots Built . | . . . . . Authchips . | . . . . . Time . | . . . . . Total Robot Build Rating . | . . . . . Part Schematics Acquired . | . . . . . Parts Built . | . . . . . Authchips . | . . . . . Time . | . . . . . Total Part Build Rating . | . . . . . Parts Repaired . | . . . . . Time . | . . . . . Parts Recycled . | . . . . . Recycled Matter . | . . . . . Retrieved Matter . | . . . . . Retrieved Components 3 | . 3 . . . Parts Scanalyzed . | . . . . . Part Schematics Acquired . | . . . . . Parts Damaged . | . . . . . Bothacking | -11 -10 -10 -9 -9 ------------ Run | Yrd Mat Min Mat Sto Used RIF Installer . | . . . . . Robots Hacked . | . . . . . Non-combat . | . . . . . Combat . | . . . . . Robot Hacks Applied . | . . . . . Relay Couplers Released . | . . . . . Fabnet Peak Effective % . | . . . . . Robots Rewired . | . . . . . Allies Hacked . | . . . . . Hacks Repelled . | . . . . . Allies | -11 -10 -10 -9 -9 -------- Run | Yrd Mat Min Mat Sto Total Allies 1 | . . 1 . . Largest Group 1 | . . 1 1 1 Highest-Rated Group 31 | . . 31 31 31 Highest-Rated Ally 31 | . . 31 31 31 Total Orders . | . . . . . Ally Attacks 21 | . . 12 4 5 Total Damage 349 | . . 206 61 82 Kills 7 | . . 5 2 . Allies Corrupted . | . . . . . Allies Melted . | . . . . . Intel | -11 -10 -10 -9 -9 ------- Run | Yrd Mat Min Mat Sto Robot Analysis Total . | . . . . . Derelict Logs Recovered . | . . . . . Drone Launches . | . . . . . Drone Recoveries . | . . . . . Exploration | -11 -10 -10 -9 -9 ------------- Run | Yrd Mat Min Mat Sto Turns Passed 1056 | 125 319 205 66 341 Spaces Moved 1245 | 80 221 166 172 606 Core 104 | 79 . 2 . 23 Treads . | . . . . . Legs 281 | 1 221 59 . . Wheels . | . . . . . Hover . | . . . . . Flight 860 | . . 105 172 583 Fastest Speed 31 | 50 120 37 34 31 Average Speed 65 | 143 120 70 34 42 Slowest Speed 250 | 150 120 250 34 200 Overloaded Moves . | . . . . . Propulsion Burnouts . | . . . . . Robots Hopped . | . . . . . Cave-ins Triggered 1 | . . . . 1 Exploration Rate (%) 31 | 5 33 43 17 60 Regions Visited 4 Branch Regions 2 Pre-discovered Areas . | . . . . . Known Exits Taken . | . . . . . Unknown Exits Taken 4 | 1 1 1 1 . Scrap Searched 1 | . . 1 . . Spaces Dug 8 | . . 8 . . Terrain Destroyed 69 | . . 11 . 58 Melee . | . . . . . Projectile 11 | . . 11 . . AOE 58 | . . . . 58 Terrain Rammed . | . . . . . Walls Destroyed . | . . . . . Machines Disabled . | . . . . . Actions | -11 -10 -10 -9 -9 --------- Run | Yrd Mat Min Mat Sto Total 1379 | 88 246 207 179 659 Wait 17 | . 5 1 1 10 Move 1241 | 79 220 165 171 606 Hop . | . . . . . Pick Up 19 | 3 6 3 3 4 Fast Attach 13 | 5 1 5 1 1 Attach 8 | 1 . 2 1 4 Detach 3 | . . 1 1 1 Swap 5 | . . . . 5 Drop 19 | . . 13 1 5 Fire 43 | . 14 17 . 12 Melee 11 | . . . . 11 Ram . | . . . . . Kick . | . . . . . Crush . | . . . . . Escape Stasis . | . . . . . Rewire . | . . . . . Trap . | . . . . . Miscellaneous . | . . . . . Route ------- -11/Scrapyard -10/Materials (discovered 2 exits: *Mat / [*Min]) -10/Mines -9/Materials -9/Storage History --------- Turn | Location | Event 29 | -11/Scrapyard | Discovered new exit (range 16) 126 | -11/Scrapyard | Entered Materials 309 | -10/Materials | Build established: Mutant 373 | -10/Materials | Discovered new exit (range 15) 373 | -10/Materials | Discovered new exit (range 10) 445 | -10/Materials | Entered Mines 471 | -10/Mines | Met a Derelict bent on vengeance 482 | -10/Mines | Received a Mining Laser from a helpful Derelict 601 | -10/Mines | Discovered new exit (range 11) 610 | -10/Mines | Excavation squad dispatched 610 | -10/Mines | A large section of the Mines collapsed 650 | -10/Mines | Entered Materials 650 | -9/Materials | Accompanied by 1 ally 650 | -9/Materials | Evolved 2 slots: Propulsion x2 669 | -9/Materials | Discovered new exit (range 7) 716 | -9/Materials | Entered Storage 716 | -9/Storage | Accompanied by 1 ally 977 | -9/Storage | Crushed by falling debris 977 | -9/Storage | System corruption reached 10% 981 | -9/Storage | Core integrity fell below 50% 1008 | -9/Storage | Lost 8 parts (1p4n1u2w) 1015 | -9/Storage | Core integrity fell below 20% 1057 | -9/Storage | Destroyed by G-34 Mercenary with Small Laser Last Messages --------------- 00977_ System corrupted by crushing effect (+4). 00977_ U-05 Engineer builds a Wall. 00978_ System corrupted: Substantial component data lost. 00979_ R-06 Scavenger collects Lgt. Ion Engine. 00980_ The unstable cave ceiling collapses. 00981_ U-05 Engineer lays Concrete. 00982_ The unstable cave ceiling collapses. 00982_ U-05 Engineer lays Concrete. 00983_ U-05 Engineer builds a Wall. 00983_ U-05 Engineer lays Concrete. 00989_ U-05 Engineer builds a Wall. 00989_ U-05 Engineer lays Concrete. 00992_ The unstable cave ceiling collapses. 00992_ U-05 Engineer lays Concrete. 00995_ U-05 Engineer builds a Wall. 00996_ U-05 Engineer lays Concrete. 01000_ U-05 Engineer builds a Wall. 01003_ System corrupted: Matter fused (-8). 01014_ Flight Unit destroyed. Map ----- +----------------------------------------------------+ | + """ + ########?#????????????????? | | ## """ # # #???????????#??????? | | ?# # " # #??????????????????? | | ?######## T + """ #??????????????????? | | ????????# " # """ #######????????????? | | ######### # """ + #????????????? | | # ##### #????????????? | | ##### ########???# ##???????????? | | #???# = ##########+##???????????? | | #??## + #???????????? | | #???####+## ###### #???????????? | | #??? ? ## #??# + """ #???????????? | | #???? ?# #??# # """ #???????????? | | #?? ## #### # """ #???????????? | | #?? + / #???????????? | | #?#######?##+#####g########???????????? | | #####?????????? ???# ####??????###??????? | | # ##?????#??? ???#ga #?????? ??????? | | + ?? ???# #?????? ??????? | | # #####?????? [ ? ?# #?"???? ??????? | | ######??##########???# #??????# #??????? | | #??? #???# #??????# ######## | | """ !#??# """"" ##### #??????# # # | | """ #?"" """"" / ######## # # | | """ ##"T """"" ######## # # # """ # | | ##"" #??????#@# """ # # """ # | | [ #?## """"" #??????# # """ + + """ # | | ######?## """"" #??????# # """ # # # | | ???????# """"" #??????# # # ##+####? | | ????????# #??????# # + #???? | | ???????######/########### ######## #???? | | #???#??# ##==" # ######## #???? | | ###????# ## ![ + #???? | | !!#????# ##==" # ########### #??#? | | ##???######## #####T# #?????????# #???? | | !!##?#??###???# #???### #?????????# #???? | | ####????#"""??# #?????# #?????????# #???? | | ???????##"Y"#?# #?????# #?#########+#???? | | ??????? ?# #?????# #?# #???? | | ?????? """ ?# ####### ### """"" ##??? | | ????#? """ # # # ## "???" #???? | | ????# """ # ""?"" #???? | | ?????# + """?" #???? | | ?????# """ # % "???" #???? | | ?????? """ ## ##########%# """"" #???? | | ?????? """ ??# #??### # #???? | | ??????? ??# #???## ## # #######???? | | ???????#########+###?# ##?????????? | | +##+#????? ? ## """ #??????????? | | ????? "" "" #??????????? | +----------------------------------------------------+ Best States ------------- Heat Dissipation 38 Energy Generation 10 Energy Capacity 250 Matter Stores 300 Matter Capacity 300 Sight Range 16 Terrain Scan Range 14 Terrain Scan Density 10 ECM Strength 1 Evasion (%) 63 Item Schematics ----------------- None Robot Schematics ------------------ None Fabricated ------------ Nothing Alien Tech Used ----------------- None Achievements -------------- None Challenges ------------ None Game ------ Seed AntimissileSeismicWeb Manual? 0 Play Time 00:17:04 Cumulative 16.7 hours Start 2024.03.24 @ 12:43:04 End 2024.03.24 @ 12:58:47 Sessions 1 Manual Loads 0 Difficulty Rogue Special Mode None Game No. 49 Rogue 49 Adventurer 0 Explorer 0 Win Type - Total 0 Types 0/0/0/0/0/0/0/0/0 Lore% 14 Gallery% 23 Achievement% 18 Wizard Run 0 Options --------- Layout 1 ASCII 0 Keyboard 1 Movement Numpad Keybinds 0 Fullscreen 2 Font 24/Terminus Map View 50x35 Zoom Use 0% Tactical HUD 1 Map Filters NONE Filters NONE Steam 1 RUN: 43450520-98d4-4d71-9078-20faa587f0d6